lending/lending_fUSD_20250121
["ID","MTS","AMOUNT","RATE_DAILY","PERIOD"]
[349862463,1737466264872,-594.25,0.00020547,2]
[349862464,1737466264882,-500.0,0.00020547,2]
[349862465,1737466264892,-588.77,0.00020547,2]
[349862466,1737466264901,-628.68,0.00020547,2]
[349862467,1737466264911,-1741.54,0.00020547,2]
[349862468,1737466264920,-1603.56,0.00020547,2]
[349862469,1737466264929,-500.0,0.00020547,2]
[349862470,1737466264939,-500.0,0.00020547,2]
[349862471,1737466264948,-500.0,0.00020547,2]
[349862472,1737466264959,-500.0,0.00020547,2]
[349862473,1737466264968,-1817.86,0.00020547,2]
[349862474,1737466264977,-500.0,0.00020547,2]
[349862475,1737466264987,-500.0,0.00020547,2]
[349862476,1737466264997,-500.0,0.00020547,2]
[349862477,1737466265007,-500.0,0.00020547,2]
[349862478,1737466265017,-500.0,0.00020547,2]
[349862479,1737466265027,-606.67,0.00020547,2]
[349862480,1737466265036,-500.0,0.00020547,2]
[349862481,1737466265048,-500.0,0.00020547,2]
[349862482,1737466265057,-500.0,0.00020547,2]
[349862483,1737466265067,-500.0,0.00020547,2]
[349862484,1737466265077,-500.0,0.00020547,2]
[349862485,1737466265087,-636.0,0.0002055,2]
[349862486,1737466265096,-219.286,0.0002055,2]
[349862487,1737466265106,-567.0,0.0002055,2]
[349862488,1737466265115,-1864.0,0.0002055,2]
[349862489,1737466265125,-2948.0,0.0002055,2]
[349862490,1737466265135,-907.0,0.0002055,2]
[349862491,1737466265144,-781.0,0.0002055,2]
[349862492,1737466265154,-1261.0,0.0002055,2]
[349862493,1737466265163,-150.0,0.0002055,2]
[349862494,1737466265172,-3984.0,0.0002055,2]
[349862495,1737466265182,-537.0,0.0002055,2]
[349862496,1737466265192,-1106.0,0.0002055,2]
[349862497,1737466265202,-3902.0,0.0002055,2]
[349862498,1737466265212,-1269.0,0.0002055,2]
[349862499,1737466265222,-152.519,0.0002055,2]
[349862500,1737466265231,-2018.0,0.0002055,2]
[349862501,1737466265241,-637.0,0.0002055,2]
[349862502,1737466265251,-500.0,0.00020565,2]
[349862503,1737466265263,-1107.1,0.00020565,2]
[349862504,1737466265273,-500.0,0.00020565,2]
[349862505,1737466265283,-500.0,0.00020565,2]
[349862506,1737466265295,-572.99,0.00020565,2]
[349862507,1737466265305,-774.63,0.00020565,2]
[349862508,1737466265314,-500.0,0.00020565,2]
[349862509,1737466265324,-1000.0,0.00020565,2]
[349862510,1737466265334,-790.45,0.00020565,2]
[349862511,1737466265343,-500.0,0.00020565,2]
[349862512,1737466265353,-500.0,0.00020565,2]
[349862513,1737466265363,-961.85,0.00020565,2]
[349862514,1737466265372,-500.0,0.00020566,2]
[349862515,1737466265382,-500.0,0.00020566,2]
[349862516,1737466265391,-500.0,0.00020566,2]
[349862517,1737466265400,-500.0,0.00020566,2]
[349862518,1737466265410,-500.0,0.00020566,2]
[349862519,1737466265419,-500.0,0.00020566,2]
[349862520,1737466265429,-500.0,0.00020566,2]
[349862521,1737466265439,-500.0,0.00020566,2]
[349862522,1737466265448,-500.0,0.00020566,2]
[349862523,1737466265459,-500.0,0.00020566,2]
[349862524,1737466265468,-500.0,0.00020566,2]
[349862525,1737466265478,-500.0,0.00020566,2]
[349862526,1737466265488,-500.0,0.00020566,2]
[349862527,1737466265497,-500.0,0.00020566,2]
[349862528,1737466265507,-500.0,0.00020566,2]
[349862529,1737466265518,-682.6,0.00020566,2]
[349862530,1737466265527,-500.0,0.00020566,2]
[349862531,1737466265536,-500.0,0.00020566,2]
[349862532,1737466265549,-500.0,0.00020566,2]
[349862533,1737466265558,-500.0,0.00020566,2]
[349862534,1737466265568,-500.0,0.00020566,2]
[349862535,1737466265577,-500.0,0.00020566,2]
[349862536,1737466265586,-500.0,0.00020566,2]
[349862537,1737466265595,-500.0,0.00020566,2]
[349862538,1737466265605,-500.0,0.00020566,2]
[349862539,1737466265614,-500.0,0.00020566,2]
[349862540,1737466265624,-503.52,0.00020566,2]
[349862541,1737466265633,-500.0,0.00020566,2]
[349862542,1737466265643,-193.44,0.00020566,2]
[349862543,1737466265652,-935.81,0.00020566,2]
[349862544,1737466265661,-500.0,0.00020566,2]
[349862545,1737466265671,-500.0,0.00020566,2]
[349862546,1737466265681,-500.0,0.00020566,2]
[349862547,1737466265690,-510.82214671,0.00020566,2]
[349862548,1737466265700,-549.04,0.00020566,2]
[349862549,1737466265710,-500.0,0.00020566,2]
[349862550,1737466265723,-500.0,0.00020566,2]
[349862551,1737466265733,-500.0,0.00020566,2]
[349862552,1737466265742,-500.0,0.00020566,2]
[349862553,1737466265752,-500.0,0.00020566,2]
[349862554,1737466265763,-500.0,0.00020566,2]
[349862555,1737466265772,-500.0,0.00020566,2]
[349862556,1737466265782,-500.0,0.00020566,2]
[349862557,1737466265794,-500.0,0.00020566,2]
[349862558,1737466265803,-500.0,0.00020566,2]
[349862559,1737466265813,-500.0,0.00020566,2]
[349862560,1737466265823,-500.0,0.00020566,2]
[349862561,1737466265833,-500.0,0.00020566,2]
[349862562,1737466265842,-500.0,0.00020566,2]
[349862563,1737466265852,-500.0,0.00020566,2]
[349862564,1737466265861,-500.0,0.00020566,2]
[349862565,1737466265871,-500.0,0.00020566,2]
[349862566,1737466265880,-500.0,0.00020566,2]
[349862567,1737466265889,-500.0,0.00020566,2]
[349862568,1737466265899,-230.73925174,0.00020566,2]
[349862569,1737466265908,-500.0,0.00020566,2]
[349862570,1737466265917,-507.06762682,0.00020566,2]
[349862571,1737466265927,-500.0,0.00020566,2]
[349862572,1737466265937,-500.0,0.00020566,2]
[349862573,1737466265947,-642.97272904,0.00020566,2]
[349862574,1737466265957,-500.0,0.00020566,2]
[349862575,1737466265967,-500.0,0.00020566,2]
[349862576,1737466265976,-500.0,0.00020566,2]
[349862577,1737466265986,-500.0,0.00020566,2]
[349862578,1737466265995,-500.0,0.00020566,2]
[349862579,1737466266005,-507.98953576,0.00020566,2]
[349862580,1737466266015,-500.0,0.00020566,2]
[349862581,1737466266025,-500.0,0.00020566,2]
[349862582,1737466266034,-500.0,0.00020566,2]
[349862583,1737466266045,-500.0,0.00020566,2]
[349862584,1737466266055,-500.0,0.00020566,2]
[349862585,1737466266065,-500.0,0.00020566,2]
[349862586,1737466266074,-500.0,0.00020566,2]
[349862587,1737466266084,-500.0,0.00020566,2]
[349862588,1737466266093,-500.0,0.00020566,2]
[349862589,1737466266103,-500.0,0.00020566,2]
[349862590,1737466266112,-500.0,0.00020566,2]
[349862591,1737466266121,-567.41507845,0.00020566,2]
[349862592,1737466266131,-500.0,0.00020566,2]
[349862593,1737466266140,-500.0,0.00020566,2]
[349862594,1737466266149,-500.0,0.00020566,2]
[349862595,1737466266158,-226.97593981,0.00020566,2]
[349862596,1737466266167,-500.0,0.00020566,2]
[349862597,1737466266176,-500.0,0.00020566,2]
[349862598,1737466266186,-500.0,0.00020566,2]
[349862599,1737466266196,-500.0,0.00020566,2]
[349862600,1737466266206,-500.0,0.00020566,2]
[349862601,1737466266216,-196.656917,0.00020566,2]
[349862602,1737466266225,-153.76999,0.00020566,2]
[349862603,1737466266235,-500.0,0.00020566,2]
[349862604,1737466266244,-210.048319,0.00020566,2]
[349862605,1737466266254,-500.0,0.00020566,2]
[349862606,1737466266264,-151.0,0.00020566,2]
[349862607,1737466266273,-500.0,0.00020566,2]
[349862608,1737466266283,-500.0,0.00020566,2]
[349862609,1737466266295,-151.0,0.00020566,2]
[349862610,1737466266305,-500.0,0.00020566,2]
[349862611,1737466266314,-500.0,0.00020566,2]
[349862612,1737466266324,-500.0,0.00020566,2]
[349862613,1737466266334,-500.0,0.00020566,2]
[349862614,1737466266344,-151.0,0.00020566,2]
[349862615,1737466266353,-151.0,0.00020566,2]
[349862616,1737466266363,-151.0,0.00020566,2]
[349862617,1737466266372,-500.0,0.00020566,2]
[349862618,1737466266382,-500.0,0.00020566,2]
[349862619,1737466266391,-151.0,0.00020566,2]
[349862620,1737466266400,-151.0,0.00020566,2]
[349862621,1737466266410,-500.0,0.00020566,2]
[349862622,1737466266419,-151.0,0.00020566,2]
[349862623,1737466266428,-500.0,0.00020566,2]
[349862624,1737466266438,-500.0,0.00020566,2]
[349862625,1737466266447,-151.0,0.00020566,2]
[349862626,1737466266456,-151.0,0.00020566,2]
[349862627,1737466266465,-577.49901844,0.00020566,2]
[349862628,1737466266474,-151.0,0.00020566,2]
[349862629,1737466266484,-500.0,0.00020566,2]
[349862630,1737466266494,-500.0,0.00020566,2]
[349862631,1737466266503,-500.0,0.00020566,2]
[349862632,1737466266513,-151.0,0.00020566,2]
[349862633,1737466266523,-517.62636897,0.00020566,2]
[349862634,1737466266532,-195.484496,0.00020566,2]
[349862635,1737466266542,-500.0,0.00020566,2]
[349862636,1737466266552,-195.484496,0.00020566,2]
[349862637,1737466266561,-500.0,0.00020566,2]
[349862638,1737466266571,-207.038256,0.00020566,2]
[349862639,1737466266581,-500.0,0.00020566,2]
[349862640,1737466266591,-500.0,0.00020566,2]
[349862641,1737466266600,-207.038256,0.00020566,2]
[349862642,1737466266609,-500.0,0.00020566,2]
[349862643,1737466266618,-500.0,0.00020567,2]
[349862644,1737466266627,-500.0,0.00020567,2]
[349862645,1737466266637,-319.55571422,0.00020567,2]
[349862646,1737466266646,-500.0,0.00020567,2]
[349862647,1737466266656,-500.0,0.00020567,2]
[349862648,1737466266665,-500.0,0.00020567,2]
[349862649,1737466266675,-500.0,0.00020567,2]
[349862650,1737466266684,-500.0,0.00020567,2]
[349862651,1737466266693,-500.0,0.00020567,2]
[349862652,1737466266703,-500.0,0.00020567,2]
[349862653,1737466266712,-500.0,0.00020567,2]
[349862654,1737466266722,-500.0,0.00020567,2]
[349862655,1737466266735,-500.0,0.00020567,2]
[349862656,1737466266745,-324.66,0.00020567,2]
[349862657,1737466266754,-500.0,0.00020567,2]
[349862658,1737466266763,-507.23,0.00020567,2]
[349862659,1737466266773,-500.0,0.00020567,2]
[349862660,1737466266783,-500.0,0.00020567,2]
[349862661,1737466266793,-500.0,0.00020567,2]
[349862662,1737466266803,-500.0,0.00020567,2]
[349862663,1737466266936,-500.0,0.00020567,2]
[349862664,1737466266946,-500.0,0.00020567,2]
[349862665,1737466266957,-500.0,0.00020567,2]
[349862666,1737466266976,-500.0,0.00020567,2]
[349862667,1737466266987,-500.0,0.00020567,2]
[349862668,1737466267000,-508.79,0.00020567,2]
[349862669,1737466267012,-500.0,0.00020567,2]
[349862670,1737466267022,-500.0,0.00020567,2]
[349862671,1737466267031,-500.0,0.00020567,2]
[349862672,1737466267042,-500.0,0.00020567,2]
[349862673,1737466267052,-500.0,0.00020567,2]
[349862674,1737466267062,-500.0,0.00020567,2]
[349862675,1737466267072,-500.0,0.00020567,2]
[349862676,1737466267081,-500.0,0.00020567,2]
[349862677,1737466267091,-500.0,0.00020567,2]
[349862678,1737466267101,-500.0,0.00020567,2]
[349862679,1737466267110,-235.180634,0.00020567,2]
[349862680,1737466267120,-500.0,0.00020567,2]
[349862681,1737466267132,-500.0,0.00020567,2]
[349862682,1737466267142,-500.0,0.00020567,2]
[349862683,1737466267151,-500.0,0.00020567,2]
[349862684,1737466267161,-381.440592,0.00020567,2]
[349862685,1737466267170,-500.0,0.00020567,2]
[349862686,1737466267179,-500.0,0.00020567,2]
[349862687,1737466267189,-500.0,0.00020567,2]
[349862688,1737466267199,-500.0,0.00020567,2]
[349862689,1737466267208,-500.0,0.00020567,2]
[349862690,1737466267218,-500.0,0.00020567,2]
[349862691,1737466267227,-500.0,0.00020567,2]
[349862692,1737466267237,-500.0,0.00020567,2]
[349862693,1737466267247,-500.0,0.00020567,2]
[349862694,1737466267256,-500.0,0.00020567,2]
[349862695,1737466267266,-500.0,0.00020567,2]
[349862696,1737466267275,-169.752904,0.00020567,2]
[349862697,1737466267284,-500.0,0.00020567,2]
[349862698,1737466267295,-500.0,0.00020567,2]
[349862699,1737466267305,-500.0,0.00020567,2]
[349862700,1737466267315,-500.0,0.00020567,2]
[349862701,1737466267325,-500.0,0.00020567,2]
[349862702,1737466267334,-500.0,0.00020567,2]
[349862703,1737466267344,-500.0,0.00020567,2]
[349862704,1737466267353,-500.0,0.00020567,2]
[349862705,1737466267362,-500.0,0.00020567,2]
[349862706,1737466267371,-500.0,0.00020567,2]
[349862707,1737466267380,-500.0,0.00020567,2]
[349862708,1737466267391,-500.0,0.00020567,2]
[349862709,1737466267400,-500.0,0.00020567,2]
[349862710,1737466267410,-500.0,0.00020567,2]
[349862711,1737466267419,-500.0,0.00020567,2]
[349862712,1737466267429,-185.41951669,0.00020567,2]
[349862713,1737466267439,-500.0,0.00020567,2]
[349862714,1737466267448,-500.0,0.00020567,2]
[349862715,1737466267458,-500.0,0.00020567,2]
[349862716,1737466267467,-500.0,0.00020567,2]
[349862717,1737466267476,-500.0,0.00020567,2]
[349862718,1737466267486,-500.0,0.00020567,2]
[349862719,1737466267495,-151.96419985,0.00020567,2]
[349862720,1737466267504,-169.752903,0.00020567,2]
[349862721,1737466267514,-500.0,0.00020567,2]
[349862722,1737466267523,-500.0,0.00020567,2]
[349862723,1737466267532,-592.02,0.00020567,2]
[349862724,1737466267541,-500.0,0.00020567,2]
[349862725,1737466267552,-548.93,0.00020567,2]
[349862726,1737466267561,-538.29,0.00020567,2]
[349862727,1737466267571,-566.2,0.00020567,2]
[349862728,1737466267580,-585.43,0.00020567,2]
[349862729,1737466267589,-765.19,0.00020567,2]
[349862730,1737466267598,-500.0,0.00020567,2]
[349862731,1737466267607,-500.0,0.00020567,2]
[349862732,1737466267617,-163.56,0.00020567,2]
[349862733,1737466267626,-721.6,0.00020567,2]
[349862734,1737466267635,-500.0,0.00020567,2]
[349862735,1737466267644,-1570.09,0.00020567,2]
[349862736,1737466267654,-1723.12,0.00020567,2]
[349862737,1737466267663,-500.0,0.00020567,2]
[349862738,1737466267681,-762.4,0.00020567,2]
[349862739,1737466267699,-682.76,0.00020567,2]
[349862740,1737466267708,-500.0,0.00020567,2]
[349862741,1737466267722,-634.38,0.00020567,2]
[349862742,1737466267731,-742.16,0.00020567,2]
[349862743,1737466267741,-1820.05,0.00020567,2]
[349862744,1737466267750,-500.0,0.00020567,2]
[349862745,1737466267760,-625.3,0.00020567,2]
[349862746,1737466267769,-500.0,0.00020567,2]
[349862747,1737466267779,-945.55,0.00020567,2]
[349862748,1737466267788,-4665.95,0.00020567,2]
[349862749,1737466267800,-500.0,0.00020567,2]
[349862750,1737466267820,-500.0,0.00020567,2]
[349862751,1737466267836,-631.46,0.00020567,2]
[349862752,1737466267848,-1528.23,0.00020567,2]
[349862753,1737466267858,-500.0,0.00020567,2]
[349862754,1737466267867,-500.0,0.00020567,2]
[349862755,1737466267877,-3600.11,0.00020567,2]
[349862756,1737466267886,-500.0,0.00020567,2]
[349862757,1737466267896,-500.0,0.00020567,2]
[349862758,1737466267906,-746.7,0.00020567,2]
[349862759,1737466267916,-1112.34,0.00020567,2]
[349862760,1737466267925,-500.0,0.00020567,2]
[349862761,1737466267934,-500.0,0.00020567,2]
[349862762,1737466267944,-500.0,0.00020567,2]
[349862763,1737466267953,-500.0,0.00020567,2]
[349862764,1737466267963,-2399.14,0.00020567,2]
[349862765,1737466267972,-1080.97,0.00020567,2]
[349862766,1737466267981,-1341.62,0.00020567,2]
[349862767,1737466267991,-500.0,0.00020567,2]
[349862768,1737466268000,-500.0,0.00020567,2]
[349862769,1737466268009,-902.64,0.00020567,2]
[349862770,1737466268020,-500.0,0.00020567,2]
[349862771,1737466268029,-1221.03,0.00020567,2]
[349862772,1737466268039,-500.0,0.00020567,2]
[349862773,1737466268050,-500.0,0.00020567,2]
[349862774,1737466268060,-2340.6,0.00020567,2]
[349862775,1737466268070,-500.0,0.00020567,2]
[349862776,1737466268079,-3326.08,0.00020567,2]
[349862777,1737466268088,-1332.4,0.00020567,2]
[349862778,1737466268098,-2333.74,0.00020567,2]
[349862779,1737466268108,-500.0,0.00020567,2]
[349862780,1737466268117,-906.05,0.00020567,2]
[349862781,1737466268127,-500.0,0.00020567,2]
[349862782,1737466268136,-500.0,0.00020567,2]
[349862783,1737466268146,-625.12,0.00020567,2]
[349862784,1737466268155,-500.0,0.00020567,2]
[349862785,1737466268165,-500.0,0.00020567,2]
[349862786,1737466268175,-500.0,0.00020567,2]
[349862787,1737466268185,-1167.19,0.00020567,2]
[349862788,1737466268194,-500.0,0.00020567,2]
[349862789,1737466268204,-3405.97,0.00020567,2]
[349862790,1737466268214,-3078.63,0.00020567,2]
[349862791,1737466268223,-500.0,0.00020567,2]
[349862792,1737466268233,-500.0,0.00020567,2]
[349862793,1737466268242,-500.0,0.00020567,2]
[349862794,1737466268252,-1600.11,0.00020567,2]
[349862795,1737466268262,-500.0,0.00020567,2]
[349862796,1737466268272,-500.0,0.00020567,2]
[349862797,1737466268281,-500.0,0.00020567,2]
[349862798,1737466268291,-500.0,0.00020567,2]
[349862799,1737466268302,-500.0,0.00020567,2]
[349862800,1737466268312,-500.0,0.00020567,2]
[349862801,1737466268321,-639.37,0.00020567,2]
[349862802,1737466268331,-530.16,0.00020567,2]
[349862803,1737466268341,-500.0,0.00020567,2]
[349862804,1737466268351,-500.0,0.00020567,2]
[349862805,1737466268359,-500.0,0.00020567,2]
[349862806,1737466268369,-500.0,0.00020567,2]
[349862807,1737466268378,-500.0,0.00020567,2]
[349862808,1737466268388,-550.07060854,0.00020567,2]
[349862809,1737466268397,-500.0,0.00020567,2]
[349862810,1737466268407,-500.0,0.00020567,2]
[349862811,1737466268416,-500.0,0.00020567,2]
[349862812,1737466268426,-770.84,0.00020567,2]
[349862813,1737466268435,-646.21,0.00020567,2]
[349862814,1737466268445,-1159.43,0.00020567,2]
[349862815,1737466268455,-568.04,0.00020567,2]
[349862816,1737466268465,-500.0,0.00020567,2]
[349862817,1737466268475,-752.81,0.00020567,2]
[349862818,1737466268484,-659.13,0.00020567,2]
[349862819,1737466268494,-1525.3,0.00020567,2]
[349862820,1737466268503,-500.0,0.00020567,2]
[349862821,1737466268513,-500.0,0.00020567,2]
[349862822,1737466268524,-3043.8,0.00020567,2]
[349862823,1737466268536,-2613.72,0.00020567,2]
[349862824,1737466268546,-500.0,0.00020567,2]
[349862825,1737466268556,-780.92,0.00020567,2]
[349862826,1737466268566,-1143.64,0.00020567,2]
[349862827,1737466268575,-500.0,0.00020567,2]
[349862828,1737466268586,-500.0,0.00020567,2]
[349862829,1737466268595,-705.38,0.00020568,2]
[349862830,1737466268604,-500.0,0.00020568,2]
[349862831,1737466268614,-500.0,0.00020568,2]
[349862832,1737466268624,-500.0,0.00020568,2]
[349862833,1737466268633,-2162.960518,0.0002058,2]
[349862834,1737466268642,-312.37420605,0.00020589,2]
[349862835,1737466268652,-171.72442,0.00020596,2]
[349862836,1737466268662,-9800.0,0.000206,15]
[349862837,1737466268671,-1500.0,0.000206,2]
[349862838,1737466268680,-1500.0,0.000206,2]
[349862839,1737466268689,-1500.0,0.000206,2]
[349862840,1737466268699,-1500.0,0.000206,2]
[349862841,1737466268708,-1500.0,0.000206,2]
[349862842,1737466268718,-1500.0,0.000206,2]
[349862843,1737466268728,-1956.93,0.000206,2]
[349862844,1737466268739,-1500.0,0.000206,2]
[349862845,1737466268749,-1500.0,0.000206,2]
[349862846,1737466268758,-1500.0,0.000206,2]
[349862847,1737466268768,-1000.0,0.000206,2]
[349862848,1737466268779,-150.0,0.0002063,2]
[349862849,1737466268789,-150.0,0.0002063,2]
[349862850,1737466268805,-150.0,0.0002063,2]
[349862851,1737466268815,-10000.0,0.0002064,2]
[349862852,1737466268825,-150.0,0.000207,2]
[349862853,1737466268835,-150.0,0.000207,2]
[349862854,1737466268844,-150.979,0.000207,2]
[349862855,1737466268854,-233.118,0.000207,2]
[349862856,1737466268863,-150.0,0.000207,2]
[349862857,1737466268872,-150.0,0.000207,2]
[349862858,1737466268882,-150.0,0.000207,2]
[349862859,1737466268891,-150.116,0.000207,2]
[349862860,1737466268901,-150.0,0.000207,2]
[349862861,1737466268911,-150.0,0.000207,2]
[349862862,1737466268920,-150.0,0.000207,2]
[349862863,1737466268930,-150.0,0.000207,2]
[349862864,1737466268940,-200.0,0.00020705,2]
[349862865,1737466268949,-294.56,0.00020711,2]
[349862866,1737466268959,-150.0,0.0002074,2]
[349862867,1737466268969,-981.79,0.0002074,2]
[349862868,1737466268978,-150.0,0.0002074,2]
[349862869,1737466268988,-150.0,0.0002074,2]
[349862870,1737466268998,-437.71,0.0002074,2]
[349862871,1737466269007,-981.79,0.0002074,2]
[349862872,1737466269017,-150.0,0.0002074,2]
[349862873,1737466269026,-150.0,0.0002074,2]
[349862874,1737466269036,-150.0,0.0002074,2]
[349862875,1737466269050,-437.71,0.0002074,2]
[349862876,1737466269066,-150.0,0.0002074,2]
[349862877,1737466269076,-150.0,0.0002074,2]
[349862878,1737466269086,-150.0,0.0002074,2]
[349862879,1737466269096,-150.0,0.0002074,2]
[349862880,1737466269106,-981.79,0.0002074,2]
[349862881,1737466269117,-150.0,0.0002074,2]
[349862882,1737466269232,-437.71,0.0002074,2]
[349862883,1737466269252,-150.0,0.0002074,2]
[349862884,1737466269262,-981.79,0.0002074,2]
[349862885,1737466269273,-150.0,0.0002074,2]
[349862886,1737466269286,-150.0,0.0002074,2]
[349862887,1737466269300,-690.16330821,0.00020741,2]
[349862888,1737466269310,-1000.0,0.00020741,2]
[349862889,1737466269319,-10000.0,0.00020747,2]
[349862890,1737466269329,-160.941,0.0002075,2]
[349862891,1737466269339,-150.0,0.0002075,2]
[349862892,1737466269349,-596.02,0.00020795,2]
[349862893,1737466269358,-437.71,0.00020795,2]
[349862894,1737466269368,-150.0,0.00020795,2]
[349862895,1737466269378,-9800.0,0.000208,16]
[349862896,1737466269387,-1000.0,0.000208,2]
[349862897,1737466269397,-150.0,0.00020804,2]
[349862898,1737466269407,-624.92,0.00020821,2]
[349862899,1737466269417,-606.72,0.00020821,2]
[349862900,1737466269428,-500.0,0.00020821,2]
[349862901,1737466269438,-977.9,0.00020821,2]
[349862902,1737466269447,-500.0,0.00020821,2]
[349862903,1737466269457,-1540.71,0.00020821,2]
[349862904,1737466269467,-913.13,0.00020821,2]
[349862905,1737466269476,-878.19,0.00020821,2]
[349862906,1737466269486,-1459.02,0.00020821,2]
[349862907,1737466269496,-1234.48,0.00020821,2]
[349862908,1737466269506,-1350.74,0.00020821,2]
[349862909,1737466269515,-594.25,0.00020821,2]
[349862910,1737466269525,-628.68,0.00020821,2]
[349862911,1737466269535,-588.77,0.00020821,2]
[349862912,1737466269550,-1741.54,0.00020821,2]
[349862913,1737466269559,-1603.56,0.00020821,2]
[349862914,1737466269567,-500.0,0.00020821,2]
[349862915,1737466269577,-500.0,0.00020821,2]
[349862916,1737466269586,-500.0,0.00020821,2]
[349862917,1737466269595,-1817.86,0.00020821,2]
[349862918,1737466269604,-500.0,0.00020821,2]
[349862919,1737466269614,-500.0,0.00020821,2]
[349862920,1737466269623,-500.0,0.00020821,2]
[349862921,1737466269632,-606.67,0.00020821,2]
[349862922,1737466269641,-500.0,0.00020821,2]
[349862923,1737466269651,-500.0,0.00020821,2]
[349862924,1737466269662,-500.0,0.00020821,2]
[349862925,1737466269671,-500.0,0.00020821,2]
[349862926,1737466269681,-1000.0,0.00020829,2]
[349862927,1737466269690,-500.0,0.00020839,2]
[349862928,1737466269700,-1107.1,0.00020839,2]
[349862929,1737466269709,-500.0,0.00020839,2]
[349862930,1737466269721,-500.0,0.00020839,2]
[349862931,1737466269731,-572.99,0.00020839,2]
[349862932,1737466269741,-774.63,0.00020839,2]
[349862933,1737466269750,-500.0,0.00020839,2]
[349862934,1737466269761,-1000.0,0.00020839,2]
[349862935,1737466269770,-790.45,0.00020839,2]
[349862936,1737466269779,-500.0,0.00020839,2]
[349862937,1737466269789,-500.0,0.00020839,2]
[349862938,1737466269800,-961.85,0.00020839,2]
[349862939,1737466269811,-500.0,0.0002084,2]
[349862940,1737466269820,-500.0,0.0002084,2]
[349862941,1737466269830,-500.0,0.0002084,2]
[349862942,1737466269840,-500.0,0.0002084,2]
[349862943,1737466269849,-500.0,0.0002084,2]
[349862944,1737466269859,-500.0,0.0002084,2]
[349862945,1737466269868,-586.1618523,0.0002084,2]
[349862946,1737466269877,-500.0,0.0002084,2]
[349862947,1737466269887,-500.0,0.0002084,2]
[349862948,1737466269897,-500.0,0.0002084,2]
[349862949,1737466269906,-682.6,0.0002084,2]
[349862950,1737466269916,-500.0,0.0002084,2]
[349862951,1737466269925,-500.0,0.0002084,2]
[349862952,1737466269935,-365.66,0.0002084,2]
[349862953,1737466269944,-508.92213148,0.0002084,2]
[349862954,1737466269953,-500.0,0.0002084,2]
[349862955,1737466269963,-500.0,0.0002084,2]
[349862956,1737466269973,-500.0,0.0002084,2]
[349862957,1737466269982,-500.0,0.0002084,2]
[349862958,1737466269992,-593.07945131,0.0002084,2]
[349862959,1737466270002,-500.0,0.0002084,2]
[349862960,1737466270011,-935.81,0.0002084,2]
[349862961,1737466270021,-500.0,0.0002084,2]
[349862962,1737466270031,-500.0,0.0002084,2]